fUSD/lending_fUSD_20240125
["ID","MTS","AMOUNT","RATE_DAILY","PERIOD"]
[312725225,1706189451333,-706.68,0.00049863,31]
[312725226,1706189451343,-500.0,0.00049863,31]
[312725227,1706189451353,-500.0,0.00049863,31]
[312725228,1706189451363,-500.0,0.00049863,31]
[312725229,1706189451373,-500.0,0.00049863,31]
[312725230,1706189451382,-500.0,0.00049863,31]
[312725231,1706189451392,-500.0,0.00049863,31]
[312725232,1706189451402,-500.0,0.00049863,31]
[312725233,1706189451412,-511.95,0.00049863,31]
[312725234,1706189451421,-500.0,0.00049863,31]
[312725235,1706189451431,-500.0,0.00049863,31]
[312725236,1706189451440,-500.0,0.00049863,31]
[312725237,1706189451449,-500.0,0.00049863,31]
[312725238,1706189451460,-500.0,0.00049863,31]
[312725239,1706189451470,-500.0,0.00049863,31]
[312725240,1706189451480,-500.0,0.00049863,31]
[312725241,1706189451490,-500.0,0.00049863,31]
[312725242,1706189451499,-500.0,0.00049863,31]
[312725243,1706189451508,-500.0,0.00049863,31]
[312725244,1706189451518,-500.0,0.00049863,31]
[312725245,1706189451527,-500.0,0.00049863,31]
[312725246,1706189451537,-500.0,0.00049863,31]
[312725247,1706189451546,-500.0,0.00049863,31]
[312725248,1706189451556,-500.0,0.00049863,31]
[312725249,1706189451566,-586.25,0.00049863,31]
[312725250,1706189451575,-500.0,0.00049863,31]
[312725251,1706189451585,-500.0,0.00049863,31]
[312725252,1706189451594,-500.0,0.00049863,31]
[312725253,1706189451603,-500.0,0.00049863,31]
[312725254,1706189451617,-500.0,0.00049863,31]
[312725255,1706189451627,-500.0,0.00049863,31]
[312725256,1706189451636,-847.89,0.00049863,31]
[312725257,1706189451646,-500.0,0.00049863,31]
[312725258,1706189451657,-500.0,0.00049863,31]
[312725259,1706189451666,-847.27,0.00049863,31]
[312725260,1706189451675,-553.41,0.00049863,2]
[312725261,1706189451684,-500.0,0.00049863,31]
[312725262,1706189451694,-500.0,0.00049863,31]
[312725263,1706189451704,-500.0,0.00049863,31]
[312725264,1706189451714,-552.54,0.00049863,31]
[312725265,1706189451723,-500.0,0.00049863,31]
[312725266,1706189451733,-500.0,0.00049863,31]
[312725267,1706189451742,-500.0,0.00049863,31]
[312725268,1706189451751,-500.0,0.00049863,31]
[312725269,1706189451761,-500.0,0.00049863,31]
[312725270,1706189451771,-500.0,0.00049863,31]
[312725271,1706189451780,-500.0,0.00049863,31]
[312725272,1706189451789,-500.0,0.00049863,31]
[312725273,1706189451799,-500.0,0.00049863,31]
[312725274,1706189451809,-500.0,0.00049863,31]
[312725275,1706189451819,-500.0,0.00049863,31]
[312725276,1706189451828,-500.0,0.00049863,31]
[312725277,1706189451838,-530.70478472,0.00049863,31]
[312725278,1706189451847,-500.0,0.00049863,10]
[312725279,1706189451856,-533.04,0.00049863,31]
[312725280,1706189451866,-500.0,0.00049863,31]
[312725281,1706189451875,-500.0,0.00049863,31]
[312725282,1706189451885,-500.0,0.00049863,31]
[312725283,1706189451894,-500.0,0.00049863,31]
[312725284,1706189451903,-500.0,0.00049863,31]
[312725285,1706189451913,-500.0,0.00049863,31]
[312725286,1706189451923,-500.0,0.00049863,31]
[312725287,1706189451932,-500.0,0.00049863,31]
[312725288,1706189451941,-500.0,0.00049863,31]
[312725289,1706189451951,-500.0,0.00049863,31]
[312725290,1706189451960,-1263.99,0.00049863,31]
[312725291,1706189451969,-500.0,0.00049863,31]
[312725292,1706189451978,-500.0,0.00049863,31]
[312725293,1706189451988,-500.0,0.00049863,31]
[312725294,1706189451997,-500.0,0.00049863,31]
[312725295,1706189452007,-500.0,0.00049863,31]
[312725296,1706189452016,-500.0,0.00049863,31]
[312725297,1706189452025,-500.0,0.00049863,31]
[312725298,1706189452035,-500.0,0.00049863,31]
[312725299,1706189452044,-500.0,0.00049863,31]
[312725300,1706189452054,-4443.62,0.00049863,31]
[312725301,1706189452063,-500.0,0.00049863,31]
[312725302,1706189452074,-500.0,0.00049863,31]
[312725303,1706189452083,-646.76552626,0.00049863,31]
[312725304,1706189452092,-500.0,0.00049863,31]
[312725305,1706189452102,-500.0,0.00049863,31]
[312725306,1706189452111,-500.0,0.00049863,31]
[312725307,1706189452121,-500.0,0.00049863,31]
[312725308,1706189452130,-500.0,0.00049863,31]
[312725309,1706189452139,-5133.55,0.00049863,5]
[312725310,1706189452149,-876.57,0.00049863,31]
[312725311,1706189452158,-500.0,0.00049863,31]
[312725312,1706189452167,-793.58,0.00049863,31]
[312725313,1706189452177,-500.0,0.00049863,31]
[312725314,1706189452186,-500.0,0.00049863,31]
[312725315,1706189452196,-500.0,0.00049863,31]
[312725316,1706189452205,-605.29,0.00049863,31]
[312725317,1706189452214,-500.0,0.00049863,31]
[312725318,1706189452224,-798.73,0.00049863,31]
[312725319,1706189452234,-500.0,0.00049863,31]
[312725320,1706189452244,-741.46,0.00049863,31]
[312725321,1706189452254,-500.0,0.00049863,31]
[312725322,1706189452264,-500.0,0.00049863,31]
[312725323,1706189452273,-500.0,0.00049863,31]
[312725324,1706189452283,-500.0,0.00049863,31]
[312725325,1706189452293,-522.59,0.00049863,31]
[312725326,1706189452303,-500.0,0.00049863,31]
[312725327,1706189452313,-500.0,0.00049863,31]
[312725328,1706189452324,-1440.42,0.00049863,31]
[312725329,1706189452333,-3848.63,0.00049863,31]
[312725330,1706189452342,-500.0,0.00049863,31]
[312725331,1706189452352,-1000.0,0.00049863,7]
[312725332,1706189452361,-659.44,0.00049863,31]
[312725333,1706189452372,-474.09244917,0.00049863,31]
[312725334,1706189452382,-500.0,0.00049863,31]
[312725335,1706189452392,-500.0,0.00049863,31]
[312725336,1706189452402,-960.66,0.00049863,31]
[312725337,1706189452412,-1413.54,0.00049863,31]
[312725338,1706189452422,-3294.47,0.00049863,31]
[312725339,1706189452432,-557.9,0.00049863,31]
[312725340,1706189452442,-500.0,0.00049863,31]
[312725341,1706189452452,-500.0,0.00049863,31]
[312725342,1706189452462,-500.0,0.00049863,31]
[312725343,1706189452473,-500.0,0.00049863,31]
[312725344,1706189452483,-500.0,0.00049863,31]
[312725345,1706189452494,-500.0,0.00049863,31]
[312725346,1706189452504,-500.0,0.00049863,31]
[312725347,1706189452515,-500.0,0.00049863,31]
[312725348,1706189452525,-500.0,0.00049863,31]
[312725349,1706189452536,-500.0,0.00049863,31]
[312725350,1706189452547,-500.0,0.00049863,31]
[312725351,1706189452557,-500.0,0.00049863,31]
[312725352,1706189452571,-500.0,0.00049863,31]
[312725353,1706189452582,-500.0,0.00049863,31]
[312725354,1706189452592,-500.0,0.00049863,31]
[312725355,1706189452602,-500.0,0.00049863,31]
[312725356,1706189452611,-658.39,0.00049863,31]
[312725357,1706189452621,-500.0,0.00049863,31]
[312725358,1706189452635,-500.0,0.00049863,31]
[312725359,1706189452645,-707.38,0.00049863,31]
[312725360,1706189452655,-806.49,0.00049863,31]
[312725361,1706189452665,-500.0,0.00049863,31]
[312725362,1706189452675,-500.0,0.00049863,31]
[312725363,1706189452684,-500.0,0.00049863,31]
[312725364,1706189452694,-500.0,0.00049863,31]
[312725365,1706189452704,-534.89,0.00049863,31]
[312725366,1706189452714,-1000.0,0.00049863,7]
[312725367,1706189452725,-500.0,0.00049863,31]
[312725368,1706189452735,-500.0,0.00049863,31]
[312725369,1706189452745,-500.0,0.00049863,31]
[312725370,1706189452755,-500.0,0.00049863,31]
[312725371,1706189452765,-500.0,0.00049863,31]
[312725372,1706189452775,-500.0,0.00049863,31]
[312725373,1706189452784,-500.0,0.00049863,31]
[312725374,1706189452794,-2660.25,0.00049863,31]
[312725375,1706189452804,-500.0,0.00049863,31]
[312725376,1706189452814,-500.0,0.00049863,31]
[312725377,1706189452830,-500.0,0.00049863,31]
[312725378,1706189452839,-500.0,0.00049863,31]
[312725379,1706189452849,-654.66,0.00049863,31]
[312725380,1706189452859,-500.0,0.00049863,31]
[312725381,1706189452868,-1220.14,0.00049863,31]
[312725382,1706189452878,-500.0,0.00049863,31]
[312725383,1706189452888,-500.0,0.00049863,31]
[312725384,1706189452898,-500.0,0.00049863,31]
[312725385,1706189452907,-500.0,0.00049863,31]
[312725386,1706189452917,-500.0,0.00049863,31]
[312725387,1706189452927,-697.52,0.00049863,31]
[312725388,1706189452936,-1219.85,0.00049863,31]
[312725389,1706189452946,-500.0,0.00049863,31]
[312725390,1706189452956,-500.0,0.00049863,31]
[312725391,1706189452966,-500.0,0.00049863,31]
[312725392,1706189452975,-500.0,0.00049863,31]
[312725393,1706189452986,-500.0,0.00049863,31]
[312725394,1706189452996,-2328.6,0.00049863,31]
[312725395,1706189453006,-500.0,0.00049863,31]
[312725396,1706189453016,-500.0,0.00049863,31]
[312725397,1706189453025,-500.0,0.00049863,31]
[312725398,1706189453035,-500.0,0.00049863,31]
[312725399,1706189453045,-500.0,0.00049863,31]
[312725400,1706189453055,-500.0,0.00049863,31]
[312725401,1706189453065,-553.77,0.00049863,31]
[312725402,1706189453078,-2392.7,0.00049863,31]
[312725403,1706189453088,-742.25,0.00049863,31]
[312725404,1706189453097,-500.0,0.00049863,31]
[312725405,1706189453108,-500.0,0.00049863,31]
[312725406,1706189453118,-500.0,0.00049863,31]
[312725407,1706189453128,-500.0,0.00049863,31]
[312725408,1706189453138,-500.0,0.00049863,31]
[312725409,1706189453148,-500.0,0.00049863,31]
[312725410,1706189453158,-500.0,0.00049863,31]
[312725411,1706189453167,-766.81,0.00049863,31]
[312725412,1706189453177,-500.0,0.00049863,31]
[312725413,1706189453187,-500.0,0.00049863,31]
[312725414,1706189453197,-500.0,0.00049863,31]
[312725415,1706189453207,-500.0,0.00049863,31]
[312725416,1706189453217,-478.44117842,0.00049863,31]
[312725417,1706189453227,-500.0,0.00049863,31]
[312725418,1706189453237,-500.0,0.00049863,31]
[312725419,1706189453247,-720.22,0.00049863,31]
[312725420,1706189453257,-500.0,0.00049863,31]
[312725421,1706189453267,-506.85,0.00049863,31]
[312725422,1706189453277,-2585.71,0.00049863,31]
[312725423,1706189453287,-500.0,0.00049863,31]
[312725424,1706189453297,-895.53,0.00049863,2]
[312725425,1706189453307,-500.0,0.00049863,31]
[312725426,1706189453319,-500.0,0.00049863,31]
[312725427,1706189453329,-1966.47,0.00049863,30]
[312725428,1706189453339,-500.0,0.00049863,31]
[312725429,1706189453349,-500.0,0.00049863,31]
[312725430,1706189453358,-500.0,0.00049863,31]
[312725431,1706189453368,-500.0,0.00049863,31]
[312725432,1706189453378,-568.09,0.00049863,31]
[312725433,1706189453577,-500.0,0.00049863,31]
[312725434,1706189453588,-500.0,0.00049863,31]
[312725435,1706189453598,-500.0,0.00049863,31]
[312725436,1706189453608,-1097.13,0.00049863,31]
[312725437,1706189453618,-500.0,0.00049863,31]
[312725438,1706189453630,-563.0,0.00049863,31]
[312725439,1706189453640,-678.21,0.00049863,31]
[312725440,1706189453650,-500.0,0.00049863,31]
[312725441,1706189453660,-500.0,0.00049863,31]
[312725442,1706189453670,-500.0,0.00049863,31]
[312725443,1706189453681,-505.22,0.00049863,31]
[312725444,1706189453690,-1184.05,0.00049863,7]
[312725445,1706189453700,-500.0,0.00049863,31]
[312725446,1706189453710,-1978.23,0.00049863,31]
[312725447,1706189453720,-1000.0,0.00049863,30]
[312725448,1706189453730,-500.0,0.00049863,31]
[312725449,1706189453740,-775.02,0.00049863,31]
[312725450,1706189453750,-500.0,0.00049863,31]
[312725451,1706189453759,-500.0,0.00049863,31]
[312725452,1706189453769,-500.0,0.00049863,31]
[312725453,1706189453778,-500.0,0.00049863,31]
[312725454,1706189453788,-500.0,0.00049863,31]
[312725455,1706189453797,-500.0,0.00049863,31]
[312725456,1706189453807,-500.0,0.00049863,31]
[312725457,1706189453817,-500.0,0.00049863,31]
[312725458,1706189453829,-500.0,0.00049863,31]
[312725459,1706189453839,-563.64,0.00049863,31]
[312725460,1706189453849,-1788.81,0.00049863,31]
[312725461,1706189453859,-536.77785281,0.00049863,31]
[312725462,1706189453872,-500.0,0.00049863,31]
[312725463,1706189453882,-381.51198539,0.00049863,31]
[312725464,1706189453892,-800.86,0.00049863,31]
[312725465,1706189453902,-824.87,0.00049863,31]
[312725466,1706189453911,-500.0,0.00049863,31]
[312725467,1706189453921,-500.0,0.00049863,31]
[312725468,1706189453931,-500.0,0.00049863,31]
[312725469,1706189453940,-500.0,0.00049863,31]
[312725470,1706189453950,-624.88,0.00049863,31]
[312725471,1706189453959,-500.0,0.00049863,31]
[312725472,1706189453969,-500.0,0.00049863,31]
[312725473,1706189453978,-500.0,0.00049863,31]
[312725474,1706189453988,-500.0,0.00049863,31]
[312725475,1706189453998,-500.0,0.00049863,31]
[312725476,1706189454007,-500.0,0.00049863,31]
[312725477,1706189454016,-500.0,0.00049863,31]
[312725478,1706189454026,-500.0,0.00049863,31]
[312725479,1706189454035,-500.0,0.00049863,31]
[312725480,1706189454045,-500.0,0.00049863,10]
[312725481,1706189454054,-3861.01,0.00049863,5]
[312725482,1706189454063,-500.0,0.00049863,31]
[312725483,1706189454075,-500.0,0.00049863,31]
[312725484,1706189454085,-500.0,0.00049863,31]
[312725485,1706189454095,-500.0,0.00049863,31]
[312725486,1706189454105,-500.0,0.00049863,31]
[312725487,1706189454114,-562.52,0.00049863,31]
[312725488,1706189454124,-702.37,0.00049863,31]
[312725489,1706189454133,-500.0,0.00049863,31]
[312725490,1706189454142,-500.0,0.00049863,31]
[312725491,1706189454153,-500.0,0.00049863,31]
[312725492,1706189454162,-500.0,0.00049863,31]
[312725493,1706189454172,-500.0,0.00049863,31]
[312725494,1706189454181,-500.0,0.00049863,31]
[312725495,1706189454191,-1562.8,0.00049863,31]
[312725496,1706189454200,-500.0,0.00049863,31]
[312725497,1706189454213,-500.0,0.00049863,31]
[312725498,1706189454223,-500.0,0.00049863,31]
[312725499,1706189454233,-729.44,0.00049863,31]
[312725500,1706189454243,-500.0,0.00049863,31]
[312725501,1706189454253,-674.25,0.00049863,31]
[312725502,1706189454263,-500.0,0.00049863,31]
[312725503,1706189454273,-500.0,0.00049863,31]
[312725504,1706189454283,-500.0,0.00049863,31]
[312725505,1706189454292,-500.0,0.00049863,31]
[312725506,1706189454302,-1360.58,0.00049863,31]
[312725507,1706189454312,-530.21,0.00049863,31]
[312725508,1706189454322,-694.83,0.00049863,2]
[312725509,1706189454332,-500.0,0.00049863,31]
[312725510,1706189454342,-500.0,0.00049863,31]
[312725511,1706189454352,-500.0,0.00049863,31]
[312725512,1706189454361,-622.63,0.00049863,31]
[312725513,1706189454371,-650.93,0.00049863,31]
[312725514,1706189454381,-1172.34,0.00049863,31]
[312725515,1706189454390,-500.0,0.00049863,31]
[312725516,1706189454400,-500.0,0.00049863,31]
[312725517,1706189454409,-500.0,0.00049863,31]
[312725518,1706189454419,-1372.24,0.00049863,31]
[312725519,1706189454429,-500.0,0.00049863,31]
[312725520,1706189454439,-500.0,0.00049863,31]
[312725521,1706189454448,-500.0,0.00049863,31]
[312725522,1706189454458,-500.0,0.00049863,31]
[312725523,1706189454468,-500.0,0.00049863,31]
[312725524,1706189454478,-500.0,0.00049863,31]
[312725525,1706189454488,-1771.9,0.00049863,31]
[312725526,1706189454497,-634.99,0.00049863,31]
[312725527,1706189454506,-300.0,0.0004987,3]
[312725528,1706189454516,-500.0,0.0004989,120]
[312725529,1706189454525,-151.0,0.00049898,14]
[312725530,1706189454535,-413.71121572,0.000499,10]
[312725531,1706189454544,-18055.47194535,0.000499,5]
[312725532,1706189454558,-204.0,0.0004991,30]
[312725533,1706189454567,-160.83203841,0.00049935,30]
[312725534,1706189454578,-1100.97560829,0.00049939,5]
[312725535,1706189454587,-5000.0,0.0004995,20]
[312725536,1706189454598,-300.0,0.0004997,7]
[312725537,1706189454608,-184.98111049,0.00049972,10]
[312725538,1706189454618,-457.72856362,0.0004998,5]
[312725539,1706189454628,-878.72988895,0.0004998,5]
[312725540,1706189454640,-200.0,0.00049987,19]
[312725541,1706189454650,-150.0,0.00049988,7]
[312725542,1706189454659,-1417.0,0.0004999,2]
[312725543,1706189454669,-358.0,0.0004999,2]
[312725544,1706189454678,-150.0,0.00049999,9]
[312725545,1706189454688,-150.0,0.00049999,9]
[312725546,1706189454697,-266.63385644,0.00049999,120]
[312725547,1706189454708,-4901.80996066,0.0005,4]
[312725548,1706189454718,-275.76456177,0.0005,4]
[312725549,1706189454727,-155.22295852,0.0005,2]
[312725550,1706189454736,-405.63922154,0.0005,4]
[312725551,1706189454746,-2955.08734488,0.0005,4]
[312725552,1706189454755,-155.64397488,0.0005,2]
[312725553,1706189454765,-20000.0,0.0005,14]
[312725554,1706189454774,-11800.13465534,0.0005,2]
[312725555,1706189454784,-16449.04686011,0.0005,3]
[312725556,1706189454794,-87772.27239354,0.0005,10]
[312725557,1706189454803,-2018.12621291,0.0005,7]
[312725558,1706189454813,-14140.0,0.0005,21]
[312725559,1706189454824,-994.92,0.0005,21]
[312725560,1706189454834,-26892.80733379,0.0005,4]
[312725561,1706189454844,-169.09913165,0.0005,7]
[312725562,1706189454853,-105000.0,0.0005,14]
[312725563,1706189454863,-10000.0,0.0005,2]
[312725564,1706189454872,-89644.0,0.0005,10]
[312725565,1706189454882,-173.73,0.0005,7]
[312725566,1706189454891,-200.0,0.0005,27]
[312725567,1706189454901,-158.316959,0.0005,120]
[312725568,1706189454910,-500.0,0.0005,120]
[312725569,1706189454919,-610.92650102,0.0005,120]
[312725570,1706189454928,-500.0,0.0005,120]
[312725571,1706189454937,-300.0,0.0005,27]
[312725572,1706189454946,-834.0,0.0005,30]
[312725573,1706189454956,-15270.0,0.0005,30]
[312725574,1706189454965,-500.0,0.0005,120]
[312725575,1706189454975,-150.0,0.0005,27]
[312725576,1706189454985,-150.0,0.00050023,7]
[312725577,1706189454994,-1500.0,0.00050047,7]
[312725578,1706189455004,-150.0,0.00050072,7]
[312725579,1706189455013,-150.0,0.00050082,7]
[312725580,1706189455022,-160.83203841,0.00050083,60]
[312725581,1706189455032,-151.0125,0.00050098,24]
[312725582,1706189455041,-160.33309341,0.00050125,60]
[312725583,1706189455050,-180.84621878,0.00050127,60]
[312725584,1706189455059,-500.0,0.00050136,14]
[312725585,1706189455070,-500.0,0.00050136,31]
[312725586,1706189455079,-500.0,0.00050136,31]
[312725587,1706189455088,-578.99,0.00050136,31]
[312725588,1706189455098,-732.03,0.00050136,31]
[312725589,1706189455106,-500.0,0.00050136,2]
[312725590,1706189455116,-662.95,0.00050136,31]
[312725591,1706189455125,-500.0,0.00050136,2]
[312725592,1706189455134,-500.0,0.00050136,31]
[312725593,1706189455143,-500.0,0.00050136,31]
[312725594,1706189455153,-500.0,0.00050136,31]
[312725595,1706189455162,-500.0,0.00050136,31]
[312725596,1706189455172,-500.0,0.00050136,31]
[312725597,1706189455181,-500.0,0.00050136,31]
[312725598,1706189455190,-500.0,0.00050136,31]
[312725599,1706189455199,-500.0,0.00050136,31]
[312725600,1706189455209,-500.0,0.00050136,31]
[312725601,1706189455219,-500.0,0.00050136,31]
[312725602,1706189455228,-500.0,0.00050136,31]
[312725603,1706189455238,-500.0,0.00050136,31]
[312725604,1706189455247,-500.0,0.00050136,31]
[312725605,1706189455258,-500.0,0.00050136,31]
[312725606,1706189455268,-500.0,0.00050136,31]
[312725607,1706189455277,-706.68,0.00050136,31]
[312725608,1706189455287,-500.0,0.00050136,31]
[312725609,1706189455296,-500.0,0.00050136,31]
[312725610,1706189455305,-500.0,0.00050136,31]
[312725611,1706189455316,-575.38205601,0.00050136,31]
[312725612,1706189455329,-638.60508534,0.00050136,31]
[312725613,1706189455346,-201.09,0.00050136,31]
[312725614,1706189455360,-500.0,0.00050136,31]
[312725615,1706189455369,-511.95,0.00050136,31]
[312725616,1706189455379,-500.0,0.00050136,31]
[312725617,1706189455389,-500.0,0.00050136,31]
[312725618,1706189455399,-500.0,0.00050136,31]
[312725619,1706189455409,-500.0,0.00050136,31]
[312725620,1706189455419,-500.0,0.00050136,31]
[312725621,1706189455429,-500.0,0.00050136,31]
[312725622,1706189455439,-500.0,0.00050136,31]
[312725623,1706189455449,-639.93722335,0.00050136,31]
[312725624,1706189455459,-500.0,0.00050136,31]
[312725625,1706189455468,-181.0073463,0.00050136,31]
[312725626,1706189455478,-500.0,0.00050136,31]
[312725627,1706189455487,-500.0,0.00050136,31]
[312725628,1706189455497,-500.0,0.00050136,31]
[312725629,1706189455507,-500.0,0.00050136,31]
[312725630,1706189455516,-500.0,0.00050136,31]
[312725631,1706189455526,-586.25,0.00050136,31]
[312725632,1706189455536,-500.0,0.00050136,31]
[312725633,1706189455546,-500.0,0.00050136,31]
[312725634,1706189455556,-500.0,0.00050136,31]
[312725635,1706189455566,-500.0,0.00050136,31]
[312725636,1706189455577,-500.0,0.00050136,31]
[312725637,1706189455587,-500.0,0.00050136,31]
[312725638,1706189455597,-847.89,0.00050136,31]
[312725639,1706189455607,-500.0,0.00050136,31]
[312725640,1706189455617,-500.0,0.00050136,31]
[312725641,1706189455629,-847.27,0.00050136,31]
[312725642,1706189455639,-553.41,0.00050136,2]
[312725643,1706189455648,-500.0,0.00050136,31]
[312725644,1706189455658,-500.0,0.00050136,31]
[312725645,1706189455668,-500.0,0.00050136,31]
[312725646,1706189455677,-552.54,0.00050136,31]
[312725647,1706189455686,-500.0,0.00050136,31]
[312725648,1706189455696,-500.0,0.00050136,31]
[312725649,1706189455706,-500.0,0.00050136,31]
[312725650,1706189455715,-500.0,0.00050136,31]
[312725651,1706189455725,-500.0,0.00050136,31]
[312725652,1706189455734,-500.0,0.00050136,31]
[312725653,1706189455743,-500.0,0.00050136,31]
[312725654,1706189455752,-500.0,0.00050136,31]
[312725655,1706189455762,-500.0,0.00050136,31]
[312725656,1706189455771,-500.0,0.00050136,31]
[312725657,1706189455781,-500.0,0.00050136,31]
[312725658,1706189455790,-500.0,0.00050136,10]
[312725659,1706189455799,-500.0,0.00050136,31]
[312725660,1706189455809,-533.04,0.00050136,31]
[312725661,1706189455818,-500.0,0.00050136,31]
[312725662,1706189455830,-500.0,0.00050136,31]
[312725663,1706189455839,-500.0,0.00050136,31]
[312725664,1706189455848,-500.0,0.00050136,31]
[312725665,1706189455858,-500.0,0.00050136,31]
[312725666,1706189455867,-500.0,0.00050136,31]
[312725667,1706189455876,-619.80111964,0.00050136,31]
[312725668,1706189455976,-500.0,0.00050136,31]
[312725669,1706189455986,-500.0,0.00050136,31]
[312725670,1706189455995,-500.0,0.00050136,31]
[312725671,1706189456004,-1263.99,0.00050136,31]
[312725672,1706189456013,-500.0,0.00050136,31]
[312725673,1706189456023,-500.0,0.00050136,31]
[312725674,1706189456032,-500.0,0.00050136,31]
[312725675,1706189456041,-500.0,0.00050136,31]
[312725676,1706189456050,-500.0,0.00050136,31]
[312725677,1706189456059,-500.0,0.00050136,31]
[312725678,1706189456069,-500.0,0.00050136,31]
[312725679,1706189456080,-500.0,0.00050136,31]
[312725680,1706189456089,-500.0,0.00050136,31]
[312725681,1706189456098,-4443.62,0.00050136,31]
[312725682,1706189456107,-500.0,0.00050136,31]
[312725683,1706189456116,-500.0,0.00050136,31]
[312725684,1706189456125,-500.0,0.00050136,31]
[312725685,1706189456135,-500.0,0.00050136,31]
[312725686,1706189456144,-575.02852301,0.00050136,31]
[312725687,1706189456157,-168.06958542,0.00050136,31]
[312725688,1706189456166,-500.0,0.00050136,31]
[312725689,1706189456175,-5133.55,0.00050136,5]
[312725690,1706189456184,-876.57,0.00050136,31]
[312725691,1706189456194,-500.0,0.00050136,31]
[312725692,1706189456203,-793.58,0.00050136,31]
[312725693,1706189456212,-500.0,0.00050136,31]
[312725694,1706189456222,-500.0,0.00050136,31]
[312725695,1706189456231,-500.0,0.00050136,31]
[312725696,1706189456240,-605.29,0.00050136,31]
[312725697,1706189456249,-500.0,0.00050136,31]
[312725698,1706189456260,-798.73,0.00050136,31]
[312725699,1706189456269,-500.0,0.00050136,31]
[312725700,1706189456278,-500.0,0.00050136,31]
[312725701,1706189456288,-741.46,0.00050136,31]
[312725702,1706189456298,-500.0,0.00050136,31]
[312725703,1706189456307,-500.0,0.00050136,31]
[312725704,1706189456317,-500.0,0.00050136,31]
[312725705,1706189456330,-522.59,0.00050136,31]
[312725706,1706189456339,-500.0,0.00050136,31]
[312725707,1706189456349,-500.0,0.00050136,31]
[312725708,1706189456359,-1440.42,0.00050136,31]
[312725709,1706189456368,-500.0,0.00050136,31]
[312725710,1706189456378,-3848.63,0.00050136,31]
[312725711,1706189456388,-1000.0,0.00050136,7]
[312725712,1706189456397,-659.44,0.00050136,31]
[312725713,1706189456406,-279.89835794,0.00050136,31]
[312725714,1706189456415,-500.0,0.00050136,31]
[312725715,1706189456425,-960.66,0.00050136,31]
[312725716,1706189456434,-1413.54,0.00050136,31]
[312725717,1706189456443,-3294.47,0.00050136,31]
[312725718,1706189456452,-557.9,0.00050136,31]
[312725719,1706189456462,-500.0,0.00050136,31]
[312725720,1706189456471,-500.0,0.00050136,31]
[312725721,1706189456481,-500.0,0.00050136,31]
[312725722,1706189456490,-500.0,0.00050136,31]
[312725723,1706189456499,-500.0,0.00050136,31]
[312725724,1706189456509,-500.0,0.00050136,31]